bitfinex/quotes_BTCUSD_20240911
["timestamp","ask_amount","ask_price","bid_price","bid_amount"]
[1726046833293,0.0032916,56607.0,56606.0,1.20553413]
[1726046833538,0.0032916,56607.0,56606.0,1.07355238]
[1726046834462,0.0012916,56607.0,56606.0,1.07355238]
[1726046834694,0.0012916,56607.0,56606.0,1.07755238]
[1726046834928,0.0012916,56607.0,56606.0,1.07655238]
[1726046835382,0.0012916,56607.0,56606.0,1.08255238]
[1726046835383,0.0022916,56607.0,56606.0,1.08255238]
[1726046837431,0.0022916,56607.0,56606.0,1.21475123]
[1726046838359,0.0022916,56607.0,56606.0,1.16191805]
[1726046839035,0.0022916,56607.0,56606.0,1.16134192]
[1726046839472,0.0022916,56607.0,56606.0,1.02916039]
[1726046840855,0.0022916,56607.0,56606.0,1.0291674]
[1726046841305,0.0022916,56607.0,56606.0,1.13488488]
[1726046841563,0.0022916,56607.0,56606.0,1.18155946]
[1726046845308,0.0022916,56607.0,56606.0,1.07584198]
[1726046845987,0.0022916,56607.0,56606.0,1.07559418]
[1726046847341,0.0022916,56607.0,56606.0,1.15484735]
[1726046847587,0.0022916,56607.0,56606.0,1.18127358]
[1726046847829,0.000818,56608.0,56607.0,0.3541998]
[1726046848050,0.0024881,56617.0,56616.0,0.321828]
[1726046848288,0.0024881,56617.0,56616.0,0.52265702]
[1726046848525,0.0024881,56617.0,56616.0,0.5754518]
[1726046849445,0.0024881,56617.0,56616.0,0.52265702]
[1726046849911,0.0034881,56617.0,56616.0,0.53365702]
[1726046850137,0.0034881,56617.0,56616.0,0.6107854]
[1726046850801,0.0044881,56617.0,56616.0,0.6197854]
[1726046851928,0.0044881,56617.0,56616.0,0.54265702]
[1726046853101,0.0044881,56617.0,56616.0,0.36402902]
[1726046853331,0.0044881,56617.0,56616.0,0.54100082]
[1726046858446,0.0044881,56617.0,56616.0,0.79963818]
[1726046858907,0.0044881,56617.0,56616.0,1.02971409]
[1726046859102,0.0044881,56617.0,56616.0,1.16260971]
[1726046859374,0.0044881,56617.0,56616.0,1.24163652]
[1726046859627,0.0053051,56617.0,56616.0,1.24163652]
[1726046860320,0.0053051,56617.0,56616.0,0.88092879]
[1726046861022,0.0053051,56617.0,56616.0,0.88091729]
[1726046861240,0.0053051,56617.0,56616.0,0.87891729]
[1726046861460,0.0053051,56617.0,56616.0,0.79990198]
[1726046862398,0.0053051,56617.0,56616.0,0.85256668]
[1726046862845,0.000818,56624.0,56623.0,0.29784418]
[1726046863107,0.000818,56624.0,56623.0,0.1769498]
[1726046863327,0.000818,56624.0,56623.0,0.29784418]
[1726046864422,0.02848756,56624.0,56623.0,0.29784418]
[1726046865282,0.02948756,56624.0,56623.0,0.30584418]
[1726046865503,0.03048756,56624.0,56623.0,0.3414286]
[1726046865972,0.03048756,56624.0,56623.0,0.3364286]
[1726046866658,0.03048756,56624.0,56623.0,0.30584418]
[1726046866894,0.03048756,56624.0,56623.0,0.36754418]
[1726046869436,0.002818,56624.0,56623.0,0.36754418]
[1726046871039,0.002818,56624.0,56623.0,0.44964418]
[1726046872184,0.002818,56624.0,56623.0,0.45127818]
[1726046872413,0.002818,56624.0,56623.0,0.50637866]
[1726046873937,0.002818,56624.0,56623.0,0.45127818]
[1726046874411,0.02766763,56626.0,56625.0,0.03]
[1726046874725,0.000818,56635.0,56627.0,0.32748838]
[1726046874842,0.000818,56635.0,56627.0,0.39258838]
[1726046875081,0.000818,56635.0,56627.0,0.62116713]
[1726046875319,0.000818,56635.0,56627.0,0.71758133]
[1726046875999,0.000818,56635.0,56627.0,0.59668695]
[1726046876234,0.000818,56635.0,56627.0,0.66494276]
[1726046876471,0.000818,56635.0,56627.0,0.71758133]
[1726046877192,0.000818,56635.0,56627.0,0.72558133]
[1726046877428,0.0034881,56628.0,56627.0,0.73958133]
[1726046877913,0.0034881,56628.0,56627.0,0.72558133]
[1726046878164,0.0034881,56628.0,56627.0,0.71758133]
[1726046878165,0.0024881,56628.0,56627.0,0.71758133]
[1726046878402,0.0034881,56628.0,56627.0,0.37812695]
[1726046878658,0.0034881,56628.0,56627.0,0.32548838]
[1726046879120,0.0024881,56628.0,56627.0,0.31148838]
[1726046879400,0.0024881,56628.0,56627.0,0.190594]
[1726046879649,0.1450881,56628.0,56627.0,0.014]
[1726046879881,0.1450881,56628.0,56623.0,0.001634]
[1726046879882,0.32102828,56628.0,56623.0,0.001634]
[1726046880117,0.1450881,56628.0,56627.0,0.29748838]
[1726046880821,0.1450881,56628.0,56627.0,0.30848838]
[1726046881296,0.1450881,56628.0,56627.0,0.019]
[1726046881297,0.85080128,56628.0,56627.0,0.019]
[1726046881306,0.85180128,56628.0,56627.0,0.008]
[1726046881538,0.32202828,56628.0,56627.0,0.008]
[1726046881771,0.32102828,56628.0,56627.0,0.003]
[1726046882493,0.32802828,56628.0,56627.0,0.004]
[1726046883184,0.32802828,56628.0,56627.0,0.001]
[1726046883646,0.32284528,56628.0,56627.0,0.176594]
[1726046883870,0.32184528,56628.0,56627.0,0.176594]
[1726046884101,0.35151569,56628.0,56627.0,0.176594]
[1726046884339,0.17557551,56628.0,56627.0,0.176594]
[1726046884574,0.17557551,56628.0,56627.0,0.37815673]
[1726046884575,0.09537551,56628.0,56627.0,0.37815673]
[1726046884821,0.03097551,56628.0,56627.0,0.37815673]
[1726046885305,0.03297551,56628.0,56627.0,0.37815673]
[1726046885995,0.03297551,56628.0,56627.0,0.4161358]
[1726046886233,0.03097551,56628.0,56627.0,0.176594]
[1726046886953,0.03097551,56628.0,56627.0,0.182594]
[1726046887942,0.03097551,56628.0,56627.0,0.186594]
[1726046888170,0.03097551,56628.0,56627.0,0.180594]
[1726046888399,0.03097551,56628.0,56627.0,0.176594]
[1726046888857,0.03097551,56628.0,56627.0,0.178594]
[1726046889585,0.03097551,56628.0,56627.0,0.176594]
[1726046889823,0.0624,56627.0,56623.0,0.001634]
[1726046890554,0.0624,56627.0,56626.0,0.176597]
[1726046891015,0.0624,56627.0,56623.0,0.001634]
[1726046891254,0.0629,56625.0,56623.0,0.17824]
[1726046891982,0.76865018,56624.0,56623.0,0.001634]
[1726046892230,1.19865718,56624.0,56623.0,0.001634]
[1726046892467,1.29865718,56624.0,56623.0,0.002634]
[1726046892937,1.29865718,56624.0,56623.0,0.003634]
[1726046893177,0.94545018,56624.0,56623.0,0.002634]
[1726046893620,1.65186418,56624.0,56623.0,0.005634]
[1726046893848,1.65186418,56624.0,56623.0,0.002634]
[1726046894144,1.65186418,56624.0,56623.0,0.001634]
[1726046894369,1.67953978,56624.0,56623.0,0.007634]
[1726046894599,1.32633278,56624.0,56623.0,0.007634]
[1726046900133,1.29865718,56624.0,56623.0,0.007634]
[1726046904333,1.32633112,56624.0,56623.0,0.007634]
[1726046906002,2.28730785,56624.0,56623.0,0.007634]
[1726046906450,1.93410085,56624.0,56623.0,0.007634]
[1726046907172,1.93410085,56624.0,56623.0,0.005634]
[1726046907395,1.93410085,56624.0,56623.0,0.001634]
[1726046907827,1.93610085,56624.0,56623.0,0.001634]
[1726046908516,1.93410085,56624.0,56623.0,0.001634]
[1726046909201,1.90642691,56624.0,56623.0,0.001634]
[1726046909944,1.90842691,56624.0,56623.0,0.001634]
[1726046911233,2.77974447,56624.0,56623.0,0.001634]
[1726046911413,2.78174447,56624.0,56623.0,0.001634]
[1726046911638,2.82616965,56624.0,56623.0,0.001634]
[1726046912116,0.20156273,56608.0,56595.0,0.001636]
[1726046912367,0.419059,56600.0,56595.0,0.001636]
[1726046912608,0.176682,56599.0,56595.0,0.001636]
[1726046912843,0.176684,56598.0,56595.0,0.001636]
[1726046913083,0.0657,56600.0,56595.0,0.001636]
[1726046913344,0.1,56602.0,56601.0,0.065]
[1726046913591,0.1,56602.0,56597.0,0.065]
[1726046913885,0.453345,56602.0,56597.0,0.065]
[1726046914100,0.276675,56602.0,56597.0,0.241687]
[1726046914335,0.176676,56601.0,56597.0,0.241687]
[1726046915078,0.176676,56601.0,56597.0,0.077]
[1726046915079,0.176684,56598.0,56597.0,0.077]
[1726046915324,0.176684,56598.0,56595.0,0.001636]
[1726046915325,0.353369,56598.0,56595.0,0.001636]
[1726046915554,0.17669,56596.0,56595.0,0.001636]
[1726046916009,0.530071,56596.0,56595.0,0.001636]
[1726046916225,0.176687,56598.0,56595.0,0.001636]
[1726046916454,0.176688,56597.0,56595.0,0.001636]
[1726046917392,0.02768277,56601.0,56600.0,0.0623]
[1726046917639,0.02768277,56601.0,56600.0,0.44054073]
[1726046918089,0.176664,56605.0,56600.0,0.238977]
[1726046918321,0.35259618,56608.0,56600.0,0.0623]
[1726046918559,0.35259618,56608.0,56602.0,0.17667]
[1726046918780,0.176657,56607.0,56602.0,0.17667]
[1726046919053,0.176657,56607.0,56600.0,0.240609]
[1726046919304,0.35259318,56608.0,56603.0,0.176668]
[1726046919520,0.176657,56607.0,56600.0,0.063934]
[1726046919762,0.35259318,56608.0,56603.0,0.176666]
[1726046920254,0.176661,56606.0,56602.0,0.176671]
[1726046920479,0.35259518,56608.0,56603.0,0.176667]
[1726046920719,0.35259518,56608.0,56604.0,0.176664]
[1726046920958,0.17594018,56608.0,56605.0,0.176661]
[1726046921196,0.17594018,56608.0,56600.0,0.075934]
[1726046921447,0.17594018,56608.0,56607.0,0.176656]
[1726046921711,0.276633,56615.0,56611.0,0.176643]
[1726046921941,0.17594018,56614.0,56611.0,0.176643]
[1726046922172,0.17594018,56614.0,56610.0,0.176646]
[1726046922387,0.1,56613.0,56610.0,0.176646]
[1726046922606,0.17594018,56612.0,56610.0,0.176646]
[1726046922830,0.17594018,56612.0,56608.0,0.0622]
[1726046923071,0.17594018,56612.0,56610.0,0.176645]
[1726046923516,0.17594018,56612.0,56608.0,0.0622]
[1726046924006,0.17594018,56612.0,56611.0,0.176644]
[1726046924256,0.002,56612.0,56608.0,0.0622]
[1726046924472,0.002,56612.0,56611.0,0.176644]
[1726046924944,0.17661,56622.0,56617.0,0.176625]
[1726046924945,0.1,56618.0,56617.0,0.176625]
[1726046925172,0.27594018,56618.0,56617.0,0.176625]
[1726046926344,0.02767412,56618.0,56617.0,0.176625]
[1726046926633,0.02767412,56618.0,56617.0,0.178625]
[1726046926868,0.02767412,56618.0,56617.0,0.176625]
[1726046927329,0.02767412,56618.0,56617.0,0.255325]
[1726046928524,0.02767412,56618.0,56617.0,0.259325]
[1726046928759,0.02767412,56618.0,56617.0,0.256325]
[1726046929000,0.4458363,56618.0,56617.0,0.001]
[1726046929232,0.51816218,56618.0,56617.0,0.004]
[1726046929496,0.87140618,56618.0,56617.0,0.001]
[1726046929971,1.22465018,56618.0,56617.0,0.008]
[1726046930208,1.22465018,56618.0,56607.0,0.0619]
[1726046930209,0.176636,56614.0,56607.0,0.0619]
[1726046930483,0.17594018,56613.0,56609.0,0.176648]
[1726046930939,0.17594018,56613.0,56610.0,0.176647]
[1726046932332,0.17594018,56613.0,56610.0,0.180647]
[1726046933302,0.17594018,56613.0,56610.0,0.004]
[1726046933528,0.20361625,56613.0,56610.0,0.004]
[1726046934459,0.20361625,56613.0,56610.0,0.180646]
[1726046934691,0.38025625,56613.0,56610.0,0.006]
[1726046936341,0.176644,56611.0,56610.0,0.006]
[1726046936579,0.35258418,56611.0,56610.0,0.006]
[1726046937290,0.17594018,56611.0,56610.0,0.004]
[1726046937522,0.02767607,56613.0,56612.0,0.17664]
[1726046938222,0.1,56622.0,56621.0,0.176612]
[1726046938907,0.1,56622.0,56617.0,0.20156273]
[1726046938908,0.0615,56629.0,56623.0,0.176606]
[1726046939137,0.238088,56629.0,56623.0,0.176606]
[1726046939377,0.238088,56629.0,56622.0,0.065]
[1726046939378,0.17675718,56624.0,56615.0,0.065]
[1726046939627,0.17594018,56623.0,56621.0,0.17661]
[1726046939854,0.17594018,56623.0,56622.0,0.176609]
[1726046941319,0.18194018,56623.0,56622.0,0.177609]
[1726046942436,0.18394018,56623.0,56622.0,0.177609]
[1726046943379,0.21161128,56623.0,56622.0,0.177609]
[1726046945016,0.21242828,56623.0,56622.0,0.177609]
[1726046945248,0.0364881,56623.0,56622.0,0.177609]
[1726046946574,0.0364881,56623.0,56622.0,0.320109]
[1726046947250,0.0364881,56623.0,56622.0,0.242909]
[1726046949772,0.008817,56623.0,56622.0,0.314809]
[1726046952964,0.008817,56623.0,56622.0,0.239109]
[1726046953644,0.008817,56623.0,56622.0,0.176609]
[1726046953645,0.002817,56623.0,56622.0,0.176609]
[1726046953888,0.002817,56623.0,56617.0,0.067134]
[1726046953889,0.004817,56623.0,56617.0,0.067134]
[1726046954110,0.004817,56623.0,56621.0,0.176611]
[1726046954337,0.004817,56623.0,56617.0,0.067134]
[1726046954338,0.002817,56623.0,56622.0,0.176609]
[1726046954566,0.002817,56623.0,56617.0,0.001634]
[1726046954567,0.17875718,56623.0,56617.0,0.001634]
[1726046954791,0.17875718,56623.0,56620.0,0.176613]
[1726046954792,0.17594018,56622.0,56620.0,0.176613]
[1726046955692,0.17594018,56622.0,56621.0,0.176612]
[1726046957063,0.17594018,56622.0,56619.0,0.176616]
[1726046957286,0.17594018,56622.0,56621.0,0.176612]
[1726046957753,0.20361197,56622.0,56621.0,0.178246]
[1726046958217,0.17594018,56622.0,56621.0,0.178246]
[1726046958664,0.17594018,56622.0,56621.0,0.180246]
[1726046959162,0.000817,56623.0,56622.0,0.176609]
[1726046960547,0.001817,56623.0,56622.0,0.176609]
[1726046964577,0.001817,56623.0,56622.0,0.37817173]
[1726046966438,0.001817,56623.0,56622.0,0.44177173]
[1726046970194,0.001817,56623.0,56622.0,0.62917073]
[1726046974588,0.001817,56623.0,56622.0,0.50817173]
[1726046974811,0.001817,56623.0,56622.0,0.37817173]
[1726046975995,0.000817,56623.0,56622.0,0.37817173]
[1726046976231,0.000817,56623.0,56622.0,0.38017173]
[1726046981668,0.000817,56623.0,56622.0,0.38180573]
[1726046983586,0.000817,56623.0,56622.0,0.4345142]
[1726046984083,0.000817,56623.0,56622.0,0.180243]
[1726046989093,0.000817,56623.0,56622.0,0.38180573]
[1726046991199,0.000817,56623.0,56622.0,0.37980573]
[1726046992131,0.000817,56623.0,56622.0,0.38180573]
[1726046992605,0.000817,56623.0,56622.0,0.38580573]
[1726046998478,0.000817,56623.0,56622.0,0.44430885]
[1726046998732,0.000817,56623.0,56622.0,0.49701108]
[1726046999272,0.000817,56623.0,56622.0,0.78784903]
[1726046999509,0.0033051,56628.0,56627.0,0.51575673]
[1726046999739,0.000818,56635.0,56634.0,0.176572]
[1726047000003,0.000818,56635.0,56634.0,0.61236613]
[1726047000273,0.000818,56635.0,56634.0,0.93852743]
[1726047000493,0.000818,56635.0,56634.0,0.80690376]
[1726047000733,0.02847914,56635.0,56634.0,0.80690376]
[1726047000989,0.0046042,56640.0,56639.0,0.176556]
[1726047001219,0.0046042,56640.0,56639.0,1.04127651]
[1726047001448,0.0046042,56640.0,56639.0,1.01489983]
[1726047001672,0.0046042,56640.0,56639.0,0.90602634]
[1726047001897,0.0046042,56640.0,56639.0,1.041191]
[1726047002429,0.0046042,56640.0,56639.0,0.83525082]
[1726047002655,0.0024881,56651.0,56639.0,0.83525082]
[1726047002656,0.0024881,56651.0,56650.0,0.176522]
[1726047002905,0.0024881,56651.0,56650.0,0.45753693]
[1726047004282,0.0044881,56651.0,56650.0,0.59060501]
[1726047004499,0.0044881,56651.0,56650.0,0.88766141]
[1726047004724,0.0044881,56651.0,56650.0,0.74397711]
[1726047004956,0.0044881,56651.0,56650.0,0.8826203]
[1726047005402,0.0044881,56651.0,56650.0,0.80397711]
[1726047005629,0.0024881,56651.0,56650.0,0.2559742]
[1726047005871,0.0024881,56651.0,56650.0,0.37808473]
[1726047006099,0.0034881,56651.0,56650.0,0.39208473]
[1726047006541,0.0024881,56651.0,56650.0,0.39208473]
[1726047006761,0.0024881,56651.0,56650.0,0.4233332]
[1726047007180,0.0034881,56651.0,56650.0,0.4323332]
[1726047008030,0.0034881,56651.0,56650.0,0.60827338]
[1726047008256,0.0034881,56651.0,56650.0,0.62027338]
[1726047008472,0.0034881,56651.0,56650.0,0.4443332]
[1726047008687,0.061517,56665.0,56650.0,0.4443332]
[1726047008688,0.000817,56665.0,56662.0,0.176485]
[1726047008899,0.000817,56665.0,56662.0,0.37804773]
[1726047010816,0.000817,56665.0,56662.0,0.69468791]
[1726047011018,0.000817,56665.0,56662.0,0.44034773]
[1726047012659,0.0086042,56663.0,56662.0,0.44034773]
[1726047012889,0.0086042,56663.0,56662.0,0.4922225]
[1726047013628,0.0046042,56663.0,56662.0,0.4922225]
[1726047013864,0.0086042,56663.0,56662.0,0.4922225]
[1726047014351,0.0086042,56663.0,56662.0,0.77426268]
[1726047016007,0.0046042,56663.0,56662.0,0.5773225]
[1726047016246,0.0056042,56663.0,56662.0,0.5843225]
[1726047016805,0.0056042,56663.0,56662.0,0.85026268]
[1726047017068,0.000817,56665.0,56663.0,0.206482]
[1726047017297,0.000817,56665.0,56663.0,0.46744815]
[1726047018918,0.000817,56665.0,56663.0,0.69204815]
[1726047019352,0.000817,56665.0,56663.0,0.70004815]
[1726047019995,0.001817,56664.0,56663.0,0.70604815]
[1726047021515,0.000817,56665.0,56664.0,0.266478]
[1726047021732,0.000817,56665.0,56664.0,0.71240516]
[1726047023165,0.000817,56665.0,56664.0,0.71440516]
[1726047023362,0.000817,56665.0,56664.0,0.71240516]
[1726047024546,0.000817,56665.0,56664.0,0.71440516]
[1726047024748,0.000817,56665.0,56664.0,0.72840516]
[1726047024954,0.000817,56665.0,56664.0,0.74240516]
[1726047026457,0.000817,56665.0,56664.0,0.72840516]
[1726047027224,0.000817,56665.0,56664.0,0.75766675]
[1726047029304,0.000817,56665.0,56664.0,0.74366675]
[1726047029997,0.001364,56671.0,56670.0,0.20646]
[1726047030230,0.001364,56671.0,56670.0,0.7141373]
[1726047030705,0.001364,56671.0,56670.0,0.7775373]
[1726047031473,0.000817,56680.0,56673.0,0.23645]
[1726047031691,0.000817,56680.0,56673.0,0.41591828]
[1726047031924,0.000817,56680.0,56679.0,0.37799473]
[1726047032148,0.000817,56680.0,56679.0,0.4157942]
[1726047033147,1e-06,56681.0,56680.0,0.266429]
[1726047033381,0.000817,56697.0,56696.0,0.176379]
[1726047034744,0.001817,56697.0,56696.0,0.176379]
[1726047034965,0.001817,56697.0,56696.0,0.21452591]
[1726047035187,0.002817,56697.0,56696.0,0.21452591]
[1726047036131,0.001817,56697.0,56696.0,0.21452591]
[1726047036372,0.001817,56697.0,56696.0,0.22652591]
[1726047036604,0.000817,56697.0,56696.0,0.188379]
[1726047037059,0.000817,56697.0,56696.0,0.197379]
[1726047038026,0.000817,56697.0,56696.0,0.26320622]
[1726047038543,0.000817,56697.0,56696.0,0.4691464]
[1726047038803,0.0030101,56699.0,56698.0,0.23156273]
[1726047039034,0.0029331,56708.0,56707.0,0.20156273]
[1726047039541,0.0029331,56708.0,56707.0,0.20508904]
[1726047040481,0.0029331,56708.0,56707.0,0.41102922]
[1726047040723,0.0029331,56708.0,56707.0,0.42502922]
[1726047040919,0.0029331,56708.0,56707.0,0.49879214]
[1726047041185,0.0030101,56712.0,56708.0,0.03]
[1726047041451,0.0615,56719.0,56711.0,0.20156273]
[1726047041678,0.0615,56719.0,56718.0,0.20156273]
[1726047043358,0.0615,56719.0,56718.0,0.20856273]
[1726047043618,0.078317,56721.0,56718.0,0.222419]
[1726047043883,0.000817,56721.0,56719.0,0.00352587]
[1726047044119,0.000817,56721.0,56719.0,0.00352578]
[1726047045110,0.000817,56721.0,56718.0,0.230419]
[1726047045341,0.000817,56721.0,56719.0,0.00352553]
[1726047045828,0.000817,56721.0,56718.0,0.40635918]
[1726047045829,0.000817,56721.0,56718.0,0.37750291]
[1726047046053,0.000817,56721.0,56719.0,0.007]
[1726047046823,0.52782518,56735.0,56719.0,0.03]
[1726047047084,0.352501,56738.0,56728.0,0.20156273]
[1726047047320,0.35609428,56736.0,56728.0,0.20156273]
[1726047047763,0.0038981,56736.0,56728.0,0.20156273]
[1726047047995,0.0038981,56736.0,56729.0,0.02015627]
[1726047049612,0.0038981,56736.0,56729.0,0.02115627]
[1726047049840,0.065,56735.0,56729.0,0.02115627]
[1726047050292,0.065,56735.0,56729.0,0.02215627]
[1726047050772,0.065,56735.0,56729.0,0.02115627]
[1726047051487,0.065,56735.0,56732.0,0.20156273]
[1726047052885,0.241259,56735.0,56732.0,0.20256273]
[1726047053132,0.241259,56735.0,56732.0,0.001]
[1726047053374,0.065,56735.0,56732.0,0.002]
[1726047054087,0.176261,56734.0,56732.0,0.002]
[1726047054548,0.176264,56733.0,56732.0,0.002]
[1726047054784,0.528792,56733.0,56732.0,0.002]
[1726047055034,0.528792,56733.0,56732.0,0.001]
[1726047055281,0.176269,56732.0,56728.0,0.20156273]
[1726047055524,0.176271,56731.0,56728.0,0.20156273]
[1726047055761,0.176267,56732.0,56728.0,0.20156273]
[1726047055999,0.176267,56732.0,56724.0,0.20156273]
[1726047056000,0.352539,56732.0,56724.0,0.20156273]
[1726047056289,0.176271,56731.0,56724.0,0.20156273]
[1726047056511,0.176267,56733.0,56732.0,0.001]
[1726047056725,0.528795,56733.0,56732.0,0.001]
[1726047056975,0.528795,56733.0,56725.0,0.02015627]
[1726047056976,0.176274,56730.0,56725.0,0.02015627]
[1726047057200,0.352528,56733.0,56728.0,0.001]
[1726047057201,0.176278,56729.0,56728.0,0.001]
[1726047057861,0.352542,56731.0,56728.0,0.001]
[1726047058081,0.881382,56729.0,56728.0,0.001]
[1726047058302,0.240176,56729.0,56728.0,0.001]
[1726047058526,0.240176,56729.0,56720.0,0.20156273]
[1726047058816,0.0762,56727.0,56719.0,0.001632]
[1726047059032,0.0762,56727.0,56719.0,0.20319473]
[1726047059476,0.176287,56726.0,56719.0,0.20319473]
[1726047060901,0.0762,56727.0,56719.0,0.20319473]
[1726047061152,0.0639,56729.0,56723.0,0.20156273]
[1726047061426,0.0601,56732.0,56728.0,0.20156273]
[1726047062462,0.065216,56735.0,56728.0,0.20156273]
[1726047062713,0.000816,56735.0,56729.0,0.25749645]
[1726047062985,0.000816,56735.0,56732.0,0.20156273]
[1726047064845,0.000816,56735.0,56729.0,0.0614]
[1726047065079,0.000816,56735.0,56729.0,0.0624]
[1726047065552,0.0663,56734.0,56725.0,0.0609]
[1726047065782,0.147,56734.0,56732.0,0.001]
[1726047066006,0.147,56734.0,56727.0,0.20156273]
[1726047066233,0.147,56734.0,56729.0,0.001]
[1726047066686,0.147,56734.0,56727.0,0.20156273]
[1726047066909,0.000816,56735.0,56727.0,0.221719]
[1726047067353,0.000816,56735.0,56731.0,0.20156273]
[1726047068079,0.000816,56735.0,56732.0,0.0609]
[1726047068312,0.000816,56735.0,56731.0,0.20156273]
[1726047068762,0.000816,56735.0,56731.0,0.20256273]
[1726047069012,0.000816,56735.0,56731.0,0.23888714]
[1726047069254,0.000816,56735.0,56731.0,0.23788714]
[1726047069491,0.000816,56735.0,56732.0,0.00852514]
[1726047069728,0.000816,56735.0,56732.0,0.005]
[1726047069948,0.0038981,56736.0,56732.0,0.005]
[1726047070174,0.0038981,56736.0,56735.0,0.20156273]
[1726047071291,0.0038981,56736.0,56735.0,0.20508741]
[1726047071512,0.0038981,56736.0,56735.0,0.26426273]
[1726047072185,0.0038981,56736.0,56735.0,0.006]
[1726047072601,0.0038981,56736.0,56735.0,0.012]
[1726047073245,0.0038981,56736.0,56735.0,0.24456887]
[1726047073462,0.0038981,56736.0,56735.0,0.23256887]
[1726047073681,0.0038981,56736.0,56735.0,0.24056887]
[1726047074162,0.0038981,56736.0,56735.0,0.24956887]
[1726047074832,0.0038981,56736.0,56735.0,0.24056887]
[1726047075285,0.0038981,56736.0,56735.0,0.24556887]
[1726047075515,0.0038981,56736.0,56735.0,0.23756887]
[1726047075972,0.0038981,56736.0,56735.0,0.24456887]
[1726047076195,0.0038981,56736.0,56735.0,0.24809347]
[1726047076413,0.0038981,56736.0,56735.0,0.24456887]
[1726047076634,0.0038981,56736.0,56735.0,0.24809334]
[1726047076855,0.0038981,56736.0,56735.0,0.30776887]
[1726047078667,0.0038981,56736.0,56735.0,0.48723351]
[1726047078910,0.0038981,56736.0,56735.0,0.56430905]
[1726047079167,0.0047141,56736.0,56735.0,0.56430905]
[1726047079395,0.0047141,56736.0,56735.0,0.53330291]
[1726047079851,0.0047141,56736.0,56735.0,0.012]
[1726047080818,0.0478141,56740.0,56735.0,0.012]
[1726047083330,0.17627,56731.0,56723.0,0.09082438]
[1726047083550,0.352531,56733.0,56723.0,0.09082438]
[1726047083551,0.02761967,56732.0,56723.0,0.09082438]
[1726047083776,0.20388667,56732.0,56723.0,0.09082438]
[1726047083999,0.20388667,56732.0,56722.0,0.20156273]
[1726047084472,0.20388667,56732.0,56722.0,0.25361176]
[1726047084898,0.38015467,56732.0,56722.0,0.25361176]
[1726047085094,0.352542,56731.0,56722.0,0.25361176]
[1726047085307,0.176282,56728.0,56722.0,0.20256273]
[1726047085537,0.0653,56726.0,56722.0,0.05204903]
[1726047085982,0.176278,56729.0,56722.0,0.05204903]
[1726047086196,0.02762167,56726.0,56722.0,0.25396004]
[1726047086421,0.02762167,56726.0,56722.0,0.25596004]
[1726047086634,0.176278,56729.0,56722.0,0.25396004]
[1726047087138,0.176281,56728.0,56722.0,0.26096004]
[1726047087599,0.418248,56730.0,56722.0,0.26096004]
[1726047087600,0.0657,56730.0,56722.0,0.26096004]
[1726047087825,0.176295,56723.0,56722.0,0.007]
[1726047088049,0.352584,56725.0,56722.0,0.007]
[1726047088272,0.176293,56724.0,56719.0,0.001632]
[1726047088511,0.176296,56723.0,56719.0,0.001632]
[1726047088771,0.176292,56724.0,56722.0,0.004]
[1726047088984,0.176295,56723.0,56719.0,0.001632]
[1726047089213,0.176301,56722.0,56719.0,0.001632]
[1726047089467,0.02762208,56725.0,56719.0,0.001632]
[1726047089468,0.242895,56723.0,56722.0,0.008]
[1726047089705,1.40077791,56723.0,56722.0,0.008]
[1726047090392,0.1418,56723.0,56722.0,0.008]
[1726047090629,0.0666,56723.0,56722.0,0.008]
[1726047090857,0.242895,56723.0,56722.0,0.008]
[1726047091085,0.77142518,56723.0,56722.0,0.00963]
[1726047091333,1.12401518,56723.0,56722.0,0.00963]
[1726047092011,1.12401518,56723.0,56722.0,0.01963]
[1726047092265,1.12401518,56723.0,56722.0,0.01163]
[1726047092515,1.55520518,56723.0,56722.0,0.00163]
[1726047093240,1.55620518,56723.0,56722.0,0.00263]
[1726047093454,1.20361518,56723.0,56722.0,0.00263]
[1726047095699,1.20361518,56723.0,56722.0,0.00363]
[1726047099219,0.77242518,56723.0,56722.0,0.00363]
[1726047100578,0.77242518,56723.0,56722.0,0.00356372]
[1726047100820,0.70582518,56723.0,56722.0,0.00356372]
[1726047101107,0.001,56723.0,56722.0,0.14176372]
[1726047101382,0.001,56723.0,56722.0,0.08080329]
[1726047101622,0.001,56723.0,56722.0,0.00356372]
[1726047102372,0.176264,56733.0,56722.0,0.00256372]
[1726047102601,0.17594018,56732.0,56722.0,0.00356372]
[1726047102828,0.17594018,56732.0,56722.0,0.00156372]
[1726047103065,0.20356138,56732.0,56722.0,0.00156372]
[1726047103288,0.001,56723.0,56722.0,0.00156372]
[1726047103529,0.17594018,56732.0,56722.0,0.00156372]
[1726047104006,0.17694018,56732.0,56722.0,0.00256372]
[1726047104258,0.17615898,56732.0,56722.0,0.00256372]
[1726047104514,0.0639,56731.0,56722.0,0.00256372]
[1726047104752,0.077,56730.0,56722.0,0.00156372]
[1726047105258,0.0772188,56730.0,56722.0,0.00156372]
[1726047105501,0.25315898,56730.0,56722.0,0.00556372]
[1726047105742,0.17594018,56729.0,56722.0,0.00556372]
[1726047105990,0.35221718,56729.0,56722.0,0.00156372]
[1726047106235,0.35221718,56729.0,56722.0,0.00256372]
[1726047106469,0.17594018,56729.0,56722.0,0.00256372]
[1726047106712,0.02762285,56728.0,56722.0,0.00156372]
[1726047106956,0.02762285,56728.0,56723.0,0.0779]
[1726047107188,0.02762285,56728.0,56723.0,0.1414]
[1726047107669,0.02762285,56728.0,56723.0,0.15595957]
[1726047108167,0.0002188,56730.0,56723.0,0.15595957]
[1726047108655,0.0002188,56730.0,56723.0,0.1414]
[1726047109157,0.0002188,56730.0,56723.0,0.1424]
[1726047109388,0.0002188,56730.0,56723.0,0.1414]
[1726047109837,0.0002188,56730.0,56723.0,0.1434]
[1726047110300,0.0002188,56730.0,56723.0,0.1424]
[1726047110518,0.0002188,56730.0,56723.0,0.1434]
[1726047111005,0.0002188,56730.0,56723.0,0.15805957]
[1726047111696,0.0002188,56730.0,56723.0,0.1434]
[1726047113852,0.0002188,56730.0,56723.0,0.2534]
[1726047115048,0.0002188,56730.0,56724.0,0.0655]
[1726047115781,0.0002188,56730.0,56726.0,0.20156273]